[Event "Titled Tuesday Blitz May 9 Early 2023"]
[White "Koridze, Lile"]
[Black "Al-Tarboush, Ward"]
[WhiteFideId "13612514"]
[BlackFideId "7601450"]
[WhiteElo "2047"]
[BlackElo "2265"]
[Result "1/2-1/2"]
[Round "09"]
[TimeControl "180+2"]
[Date "2023.05.09"]
[WhiteClock "0:01:14"]
[BlackClock "0:00:17"]

1. d4 {[%clk 0:03:00]}  Nf6 {[%clk 0:02:59]} 2. c4 {[%clk 0:03:00]}  b6 {[%clk 0:02:59]} 3. Nc3 {[%clk 0:02:59]}  Bb7 {[%clk 0:02:59]} 4. Nf3 {[%clk 0:02:59]}  e6 {[%clk 0:02:59]} 5. e3 {[%clk 0:02:59]}  Bb4 {[%clk 0:02:56]} 6. Bd2 {[%clk 0:02:56]}  O-O {[%clk 0:02:56]} 7. Bd3 {[%clk 0:02:55]}  c5 {[%clk 0:02:53]} 8. O-O {[%clk 0:02:54]}  cxd4 {[%clk 0:02:51]} 9. exd4 {[%clk 0:02:54]}  d5 {[%clk 0:02:50]} 10. a3 {[%clk 0:02:52]}  Bd6 {[%clk 0:02:48]} 11. h3 {[%clk 0:02:51]}  Nbd7 {[%clk 0:02:47]} 12. Qe2 {[%clk 0:02:50]}  dxc4 {[%clk 0:02:47]} 13. Bxc4 {[%clk 0:02:50]}  Qc7 {[%clk 0:02:46]} 14. Rac1 {[%clk 0:02:49]}  a6 {[%clk 0:02:39]} 15. Bd3 {[%clk 0:02:48]}  Qb8 {[%clk 0:02:34]} 16. Ne4 {[%clk 0:02:44]}  Nxe4 {[%clk 0:02:29]} 17. Bxe4 {[%clk 0:02:44]}  Bxe4 {[%clk 0:02:30]} 18. Qxe4 {[%clk 0:02:45]}  Nf6 {[%clk 0:02:30]} 19. Qh4 {[%clk 0:02:44]}  Qb7 {[%clk 0:02:27]} 20. Bg5 {[%clk 0:02:37]}  Be7 {[%clk 0:02:27]} 21. Ne5 {[%clk 0:02:34]}  Rac8 {[%clk 0:02:25]} 22. Rxc8 {[%clk 0:02:23]}  Rxc8 {[%clk 0:02:26]} 23. Rc1 {[%clk 0:02:22]}  Rxc1+ {[%clk 0:02:18]} 24. Bxc1 {[%clk 0:02:22]}  Qc7 {[%clk 0:02:16]} 25. Qf4 {[%clk 0:02:15]}  h6 {[%clk 0:02:08]} 26. Bd2 {[%clk 0:02:12]}  Bd6 {[%clk 0:02:06]} 27. Bc3 {[%clk 0:02:10]}  Nd5 {[%clk 0:02:06]} 28. Qd2 {[%clk 0:02:07]}  Nxc3 {[%clk 0:02:03]} 29. bxc3 {[%clk 0:02:03]}  Bxe5 {[%clk 0:01:59]} 30. dxe5 {[%clk 0:02:02]}  Qxe5 {[%clk 0:01:59]} 31. Qd8+ {[%clk 0:02:03]}  Kh7 {[%clk 0:01:59]} 32. Qxb6 {[%clk 0:02:03]}  Qxc3 {[%clk 0:01:54]} 33. Qxa6 {[%clk 0:02:03]}  Qa1+ {[%clk 0:01:35]} 34. Kh2 {[%clk 0:01:58]}  Qe5+ {[%clk 0:01:32]} 35. Kg1 {[%clk 0:01:58]}  Qe1+ {[%clk 0:01:30]} 36. Qf1 {[%clk 0:01:57]}  Qa5 {[%clk 0:01:29]} 37. Qd3+ {[%clk 0:01:57]}  f5 {[%clk 0:01:28]} 38. Qb3 {[%clk 0:01:54]}  e5 {[%clk 0:01:18]} 39. Qb4 {[%clk 0:01:53]}  Qd8 {[%clk 0:01:07]} 40. Qb1 {[%clk 0:01:49]}  e4 {[%clk 0:01:01]} 41. a4 {[%clk 0:01:48]}  Qd2 {[%clk 0:01:02]} 42. Qb5 {[%clk 0:01:46]}  Qe1+ {[%clk 0:01:02]} 43. Qf1 {[%clk 0:01:44]}  Qc3 {[%clk 0:00:50]} 44. Qb5 {[%clk 0:01:42]}  Qe1+ {[%clk 0:00:44]} 45. Qf1 {[%clk 0:01:42]}  Qc3 {[%clk 0:00:30]} 46. Qb5 {[%clk 0:01:42]}  Qc1+ {[%clk 0:00:30]} 47. Qf1 {[%clk 0:01:40]}  Qa3 {[%clk 0:00:29]} 48. Qb5 {[%clk 0:01:40]}  Qa1+ {[%clk 0:00:29]} 49. Kh2 {[%clk 0:01:38]}  Kg6 {[%clk 0:00:27]} 50. a5 {[%clk 0:01:38]}  f4 {[%clk 0:00:26]} 51. Qb6+ {[%clk 0:01:28]}  Kh7 {[%clk 0:00:24]} 52. a6 {[%clk 0:01:27]}  e3 {[%clk 0:00:23]} 53. fxe3 {[%clk 0:01:21]}  fxe3 {[%clk 0:00:24]} 54. Qxe3 {[%clk 0:01:09]}  Qxa6 {[%clk 0:00:24]} 55. Qe4+ {[%clk 0:01:10]}  Kg8 {[%clk 0:00:22]} 56. Qe8+ {[%clk 0:01:09]}  Kh7 {[%clk 0:00:22]} 57. Qe4+ {[%clk 0:01:10]}  Qg6 {[%clk 0:00:18]} 58. Qxg6+ {[%clk 0:01:10]}  Kxg6 {[%clk 0:00:19]} 59. Kg3 {[%clk 0:01:10]}  Kf5 {[%clk 0:00:20]} 60. Kf3 {[%clk 0:01:11]}  Ke5 {[%clk 0:00:20]} 61. Ke3 {[%clk 0:01:09]}  g6 {[%clk 0:00:18]} 62. Kf3 {[%clk 0:01:09]}  Kf5 {[%clk 0:00:15]} 63. Ke3 {[%clk 0:01:08]}  Kg5 {[%clk 0:00:15]} 64. Kf3 {[%clk 0:01:09]}  Kf5 {[%clk 0:00:12]} 65. Ke3 {[%clk 0:01:08]}  Ke5 {[%clk 0:00:12]} 66. Kf3 {[%clk 0:01:09]}  Kd5 {[%clk 0:00:13]} 67. Ke3 {[%clk 0:01:09]}  g5 {[%clk 0:00:12]} 68. Kf3 {[%clk 0:01:08]}  Ke5 {[%clk 0:00:11]} 69. Kg4 {[%clk 0:01:09]}  Kf6 {[%clk 0:00:11]} 70. Kh5 {[%clk 0:01:09]}  Kg7 {[%clk 0:00:11]} 71. g3 {[%clk 0:01:08]}  Kh7 {[%clk 0:00:11]} 72. h4 {[%clk 0:01:08]}  gxh4 {[%clk 0:00:10]} 73. gxh4 {[%clk 0:01:05]}  Kg7 {[%clk 0:00:10]} 74. Kg4 {[%clk 0:01:05]}  Kg6 {[%clk 0:00:10]} 75. Kf4 {[%clk 0:01:05]}  Kf6 {[%clk 0:00:10]} 76. Kg4 {[%clk 0:01:06]}  Kg6 {[%clk 0:00:10]} 77. Kf4 {[%clk 0:01:06]}  Kh5 {[%clk 0:00:10]} 78. Kg3 {[%clk 0:01:07]}  Kg6 {[%clk 0:00:10]} 79. Kg4 {[%clk 0:01:08]}  h5+ {[%clk 0:00:11]} 80. Kf4 {[%clk 0:01:08]}  Kf6 {[%clk 0:00:11]} 81. Kg3 {[%clk 0:01:08]}  Ke5 {[%clk 0:00:11]} 82. Kf3 {[%clk 0:01:08]}  Kf5 {[%clk 0:00:11]} 83. Kg3 {[%clk 0:01:08]}  Ke4 {[%clk 0:00:12]} 84. Kg2 {[%clk 0:01:08]}  Kf4 {[%clk 0:00:12]} 85. Kg1 {[%clk 0:01:08]}  Kg3 {[%clk 0:00:12]} 86. Kh1 {[%clk 0:01:08]}  Kxh4 {[%clk 0:00:12]} 87. Kh2 {[%clk 0:01:08]}  Kg4 {[%clk 0:00:13]} 88. Kg2 {[%clk 0:01:09]}  Kf4 {[%clk 0:00:13]} 89. Kh3 {[%clk 0:01:09]}  Kg5 {[%clk 0:00:13]} 90. Kg3 {[%clk 0:01:09]}  Kf5 {[%clk 0:00:13]} 91. Kh4 {[%clk 0:01:09]}  Kg6 {[%clk 0:00:13]} 92. Kh3 {[%clk 0:01:10]}  Kg5 {[%clk 0:00:13]} 93. Kg3 {[%clk 0:01:10]}  h4+ {[%clk 0:00:14]} 94. Kh3 {[%clk 0:01:10]}  Kh5 {[%clk 0:00:14]} 95. Kh2 {[%clk 0:01:11]}  Kg4 {[%clk 0:00:14]} 96. Kg2 {[%clk 0:01:11]}  h3+ {[%clk 0:00:14]} 97. Kh2 {[%clk 0:01:12]}  Kh4 {[%clk 0:00:15]} 98. Kh1 {[%clk 0:01:13]}  Kg3 {[%clk 0:00:15]} 99. Kg1 {[%clk 0:01:13]}  Kg4 {[%clk 0:00:15]} 100. Kh1 {[%clk 0:01:13]}  Kh4 {[%clk 0:00:16]} 101. Kg1 {[%clk 0:01:13]}  Kg3 {[%clk 0:00:16]} 102. Kh1 {[%clk 0:01:14]}  h2 {[%clk 0:00:17]} 1/2-1/2


[Site "https://www.chess.com"]

[Event "Titled Tuesday Blitz May 9 Early 2023"]
[White "Rios Escobar, Adan"]
[Black "Lorenzo De La Riva, Lazaro"]
[WhiteFideId "3403645"]
[BlackFideId "2268809"]
[WhiteElo "2419"]
[BlackElo "2294"]
[Result "0-1"]
[Round "09"]
[TimeControl "180+2"]
[Date "2023.05.09"]
[WhiteClock "0:00:47"]
[BlackClock "0:00:24"]

1. d4 {[%clk 0:02:50]}  Nf6 {[%clk 0:02:59]} 2. g3 {[%clk 0:02:50]}  c5 {[%clk 0:02:57]} 3. d5 {[%clk 0:02:50]}  b5 {[%clk 0:02:40]} 4. a4 {[%clk 0:02:49]}  b4 {[%clk 0:02:39]} 5. c4 {[%clk 0:02:49]}  bxc3 {[%clk 0:02:34]} 6. Nxc3 {[%clk 0:02:50]}  d6 {[%clk 0:02:34]} 7. e4 {[%clk 0:02:50]}  g6 {[%clk 0:02:33]} 8. Bb5+ {[%clk 0:02:50]}  Bd7 {[%clk 0:02:29]} 9. Nf3 {[%clk 0:02:44]}  Bg7 {[%clk 0:02:29]} 10. e5 {[%clk 0:02:43]}  dxe5 {[%clk 0:02:22]} 11. Nxe5 {[%clk 0:02:44]}  O-O {[%clk 0:02:22]} 12. O-O {[%clk 0:02:39]}  a6 {[%clk 0:02:15]} 13. Bxd7 {[%clk 0:02:33]}  Nfxd7 {[%clk 0:02:13]} 14. Nc6 {[%clk 0:02:23]}  Nxc6 {[%clk 0:02:10]} 15. dxc6 {[%clk 0:02:24]}  Ne5 {[%clk 0:02:09]} 16. Qxd8 {[%clk 0:02:05]}  Rfxd8 {[%clk 0:02:08]} 17. c7 {[%clk 0:02:05]}  Rd7 {[%clk 0:02:00]} 18. Bg5 {[%clk 0:01:41]}  Nf3+ {[%clk 0:01:42]} 19. Kg2 {[%clk 0:01:40]}  Nxg5 {[%clk 0:01:42]} 20. Rfd1 {[%clk 0:01:34]}  Rxc7 {[%clk 0:01:41]} 21. Nd5 {[%clk 0:01:34]}  Rb7 {[%clk 0:01:40]} 22. a5 {[%clk 0:01:34]}  Bxb2 {[%clk 0:01:28]} 23. Rab1 {[%clk 0:01:34]}  Rab8 {[%clk 0:01:28]} 24. Nb6 {[%clk 0:01:34]}  Bd4 {[%clk 0:01:27]} 25. Rbc1 {[%clk 0:01:33]}  Ne6 {[%clk 0:01:26]} 26. h4 {[%clk 0:01:32]}  h5 {[%clk 0:01:25]} 27. Nd5 {[%clk 0:01:32]}  Kf8 {[%clk 0:01:20]} 28. Rc2 {[%clk 0:01:31]}  Rb5 {[%clk 0:01:18]} 29. Ra2 {[%clk 0:01:28]}  Rb2 {[%clk 0:01:13]} 30. Rd2 {[%clk 0:01:29]}  Rxd2 {[%clk 0:01:12]} 31. Rxd2 {[%clk 0:01:28]}  Rb2 {[%clk 0:01:08]} 32. Rxb2 {[%clk 0:01:28]}  Bxb2 {[%clk 0:01:09]} 33. Kf3 {[%clk 0:01:29]}  Nd4+ {[%clk 0:01:05]} 34. Ke4 {[%clk 0:01:28]}  Nc6 {[%clk 0:01:05]} 35. Nc7 {[%clk 0:01:28]}  Nxa5 {[%clk 0:01:02]} 36. Nxa6 {[%clk 0:01:28]}  c4 {[%clk 0:01:00]} 37. Nc5 {[%clk 0:01:26]}  e6 {[%clk 0:00:50]} 38. f3 {[%clk 0:01:26]}  Kg7 {[%clk 0:00:46]} 39. g4 {[%clk 0:01:26]}  Bf6 {[%clk 0:00:44]} 40. g5 {[%clk 0:01:17]}  Be7 {[%clk 0:00:40]} 41. Na4 {[%clk 0:01:16]}  Bd6 {[%clk 0:00:37]} 42. f4 {[%clk 0:01:16]}  Bb4 {[%clk 0:00:36]} 43. Kf3 {[%clk 0:01:16]}  c3 {[%clk 0:00:35]} 44. Ke2 {[%clk 0:01:15]}  Bd6 {[%clk 0:00:28]} 45. Nxc3 {[%clk 0:01:13]}  Bxf4 {[%clk 0:00:28]} 46. Kf3 {[%clk 0:01:12]}  Bb8 {[%clk 0:00:26]} 47. Ne4 {[%clk 0:01:12]}  Nc6 {[%clk 0:00:26]} 48. Kg2 {[%clk 0:01:11]}  Ne7 {[%clk 0:00:26]} 49. Kh3 {[%clk 0:01:11]}  Nf5 {[%clk 0:00:27]} 50. Nf6 {[%clk 0:01:10]}  Be5 {[%clk 0:00:25]} 51. Nd7 {[%clk 0:01:09]}  Bd4 {[%clk 0:00:25]} 52. Nb8 {[%clk 0:01:08]}  Bf2 {[%clk 0:00:25]} 53. Nc6 {[%clk 0:01:05]}  Bxh4 {[%clk 0:00:25]} 54. Ne5 {[%clk 0:01:06]}  Bxg5 {[%clk 0:00:25]} 55. Nf3 {[%clk 0:01:06]}  Bf6 {[%clk 0:00:25]} 56. Nh2 {[%clk 0:01:06]}  e5 {[%clk 0:00:26]} 57. Nf3 {[%clk 0:01:06]}  e4 {[%clk 0:00:26]} 58. Nd2 {[%clk 0:01:07]}  e3 {[%clk 0:00:26]} 59. Nf3 {[%clk 0:01:07]}  g5 {[%clk 0:00:27]} 60. Kg2 {[%clk 0:01:07]}  g4 {[%clk 0:00:27]} 61. Ne1 {[%clk 0:01:04]}  h4 {[%clk 0:00:27]} 62. Kh2 {[%clk 0:01:03]}  Kg6 {[%clk 0:00:26]} 63. Kg2 {[%clk 0:01:03]}  Kg5 {[%clk 0:00:26]} 64. Kh2 {[%clk 0:01:03]}  Kf4 {[%clk 0:00:26]} 65. Kg2 {[%clk 0:01:04]}  Ke4 {[%clk 0:00:27]} 66. Kh2 {[%clk 0:01:04]}  Bc3 {[%clk 0:00:27]} 67. Ng2 {[%clk 0:01:05]}  e2 {[%clk 0:00:25]} 68. Kg1 {[%clk 0:00:49]}  e1=Q+ {[%clk 0:00:24]} 69. Nxe1 {[%clk 0:00:49]}  Bxe1 {[%clk 0:00:25]} 70. Kg2 {[%clk 0:00:50]}  Ba5 {[%clk 0:00:24]} 71. Kh2 {[%clk 0:00:47]}  g3+ {[%clk 0:00:24]} 0-1


[Site "https://www.chess.com"]

[Event "Titled Tuesday Blitz May 9 Early 2023"]
[White "Barbot, Pierre"]
[Black "Thorhallsson, Simon"]
[WhiteFideId "663727"]
[BlackFideId "2310090"]
[WhiteElo "2431"]
[BlackElo "2108"]
[Result "0-1"]
[Round "09"]
[TimeControl "180+2"]
[Date "2023.05.09"]
[WhiteClock "0:00:00"]
[BlackClock "0:00:03"]

1. d4 {[%clk 0:03:00]}  Nf6 {[%clk 0:02:59]} 2. Nc3 {[%clk 0:03:01]}  d5 {[%clk 0:02:59]} 3. Bf4 {[%clk 0:03:00]}  c5 {[%clk 0:02:59]} 4. e3 {[%clk 0:03:00]}  cxd4 {[%clk 0:02:59]} 5. exd4 {[%clk 0:03:00]}  a6 {[%clk 0:02:59]} 6. Nf3 {[%clk 0:02:59]}  Nc6 {[%clk 0:02:59]} 7. Ne5 {[%clk 0:02:49]}  Bd7 {[%clk 0:02:57]} 8. Be2 {[%clk 0:02:33]}  e6 {[%clk 0:02:57]} 9. g4 {[%clk 0:02:11]}  Bb4 {[%clk 0:02:33]} 10. O-O {[%clk 0:01:58]}  Qb6 {[%clk 0:01:34]} 11. Be3 {[%clk 0:01:34]}  Qc7 {[%clk 0:01:27]} 12. f4 {[%clk 0:01:27]}  Bxc3 {[%clk 0:01:21]} 13. bxc3 {[%clk 0:01:27]}  Ne4 {[%clk 0:01:22]} 14. Bd3 {[%clk 0:01:04]}  Nxc3 {[%clk 0:01:09]} 15. Qf3 {[%clk 0:00:59]}  Ne4 {[%clk 0:00:58]} 16. c4 {[%clk 0:00:45]}  Nxe5 {[%clk 0:00:32]} 17. fxe5 {[%clk 0:00:39]}  Bc6 {[%clk 0:00:27]} 18. cxd5 {[%clk 0:00:20]}  exd5 {[%clk 0:00:28]} 19. Qf5 {[%clk 0:00:10]}  O-O {[%clk 0:00:26]} 20. Rac1 {[%clk 0:00:06]}  Rae8 {[%clk 0:00:18]} 21. Rf3 {[%clk 0:00:06]}  g6 {[%clk 0:00:11]} 22. Qf4 {[%clk 0:00:05]}  Qd7 {[%clk 0:00:11]} 23. Rh3 {[%clk 0:00:05]}  f6 {[%clk 0:00:10]} 24. e6 {[%clk 0:00:03]}  Rxe6 {[%clk 0:00:08]} 25. Kh1 {[%clk 0:00:03]}  Ng5 {[%clk 0:00:08]} 26. Rh6 {[%clk 0:00:02]}  Qe7 {[%clk 0:00:07]} 27. Bxg6 {[%clk 0:00:02]}  hxg6 {[%clk 0:00:06]} 28. Rxg6+ {[%clk 0:00:02]}  Kh7 {[%clk 0:00:07]} 29. Qf5 {[%clk 0:00:02]}  Kh8 {[%clk 0:00:04]} 30. Rh6+ {[%clk 0:00:02]}  Kg8 {[%clk 0:00:03]} 31. Rg6+ {[%clk 0:00:03]}  Kh8 {[%clk 0:00:02]} 32. Rh6+ {[%clk 0:00:03]}  Kg8 {[%clk 0:00:02]} 33. Bxg5 {[%clk 0:00:03]}  fxg5 {[%clk 0:00:02]} 34. Rxe6 {[%clk 0:00:02]}  Qg7 {[%clk 0:00:01]} 35. Qg6 {[%clk 0:00:02]}  Qxg6 {[%clk 0:00:01]} 36. Rxg6+ {[%clk 0:00:02]}  Kh7 {[%clk 0:00:02]} 37. Rxg5 {[%clk 0:00:03]}  Rf4 {[%clk 0:00:02]} 38. Re5 {[%clk 0:00:03]}  Rxd4 {[%clk 0:00:02]} 39. g5 {[%clk 0:00:03]}  Rd2 {[%clk 0:00:03]} 40. h4 {[%clk 0:00:03]}  d4+ {[%clk 0:00:03]} 41. Kg1 {[%clk 0:00:03]}  Rg2+ {[%clk 0:00:04]} 42. Kf1 {[%clk 0:00:04]}  Rh2 {[%clk 0:00:05]} 43. Re7+ {[%clk 0:00:03]}  Kg6 {[%clk 0:00:04]} 44. Rce1 {[%clk 0:00:02]}  Rxh4 {[%clk 0:00:04]} 45. R1e5 {[%clk 0:00:02]}  d3 {[%clk 0:00:02]} 46. R7e6+ {[%clk 0:00:03]}  Kg7 {[%clk 0:00:02]} 47. g6 {[%clk 0:00:02]}  Rh1+ {[%clk 0:00:01]} 48. Kf2 {[%clk 0:00:02]}  d2 {[%clk 0:00:02]} 49. Rd6 {[%clk 0:00:02]}  d1=Q {[%clk 0:00:02]} 50. Re7+ {[%clk 0:00:01]}  Kh6 {[%clk 0:00:02]} 51. Rxd1 {[%clk 0:00:01]}  Rxd1 {[%clk 0:00:02]} 52. g7 {[%clk 0:00:02]}  Kh7 {[%clk 0:00:03]} 53. Ke3 {[%clk 0:00:02]}  Rd7 {[%clk 0:00:03]} 54. Re8 {[%clk 0:00:00]}  Kxg7 {[%clk 0:00:03]} 0-1


[Site "https://www.chess.com"]

[Event "Titled Tuesday Blitz May 9 Early 2023"]
[White "Balint, Vilmos"]
[Black "Nguyen Hong Nhung"]
[WhiteFideId "718050"]
[BlackFideId "12412201"]
[WhiteElo "2034"]
[BlackElo "1996"]
[Result "1-0"]
[Round "09"]
[TimeControl "180+2"]
[Date "2023.05.09"]
[WhiteClock "0:00:06"]
[BlackClock "0:00:00"]

1. e4 {[%clk 0:02:55]}  c5 {[%clk 0:03:00]} 2. Nf3 {[%clk 0:02:54]}  e6 {[%clk 0:03:00]} 3. g3 {[%clk 0:02:53]}  Nc6 {[%clk 0:03:00]} 4. Bg2 {[%clk 0:02:53]}  d5 {[%clk 0:02:59]} 5. d3 {[%clk 0:02:50]}  Nf6 {[%clk 0:02:59]} 6. O-O {[%clk 0:02:49]}  dxe4 {[%clk 0:02:58]} 7. Ng5 {[%clk 0:02:45]}  exd3 {[%clk 0:02:54]} 8. cxd3 {[%clk 0:02:45]}  Bd7 {[%clk 0:02:51]} 9. Nc3 {[%clk 0:02:44]}  Be7 {[%clk 0:02:49]} 10. Be3 {[%clk 0:02:42]}  O-O {[%clk 0:02:48]} 11. Rc1 {[%clk 0:02:40]}  b6 {[%clk 0:02:48]} 12. a3 {[%clk 0:02:33]}  Rc8 {[%clk 0:02:47]} 13. Nce4 {[%clk 0:02:22]}  Nd5 {[%clk 0:02:41]} 14. Nf3 {[%clk 0:02:20]}  e5 {[%clk 0:02:28]} 15. Qb3 {[%clk 0:02:04]}  Be6 {[%clk 0:02:23]} 16. Qa4 {[%clk 0:01:51]}  Qd7 {[%clk 0:02:12]} 17. Nfg5 {[%clk 0:01:44]}  Bf5 {[%clk 0:02:04]} 18. b4 {[%clk 0:01:34]}  h6 {[%clk 0:01:56]} 19. Nf3 {[%clk 0:01:32]}  Nxe3 {[%clk 0:01:43]} 20. fxe3 {[%clk 0:01:30]}  Qxd3 {[%clk 0:01:41]} 21. Nf2 {[%clk 0:01:24]}  Qd7 {[%clk 0:01:26]} 22. Rfd1 {[%clk 0:01:22]}  Qe6 {[%clk 0:01:26]} 23. b5 {[%clk 0:01:14]}  Na5 {[%clk 0:01:21]} 24. e4 {[%clk 0:01:11]}  Bh7 {[%clk 0:01:12]} 25. Bh3 {[%clk 0:01:08]}  f5 {[%clk 0:01:06]} 26. Rd5 {[%clk 0:00:55]}  Bf6 {[%clk 0:00:56]} 27. Rcd1 {[%clk 0:00:47]}  Rcd8 {[%clk 0:00:55]} 28. Qc2 {[%clk 0:00:29]}  Nb7 {[%clk 0:00:40]} 29. exf5 {[%clk 0:00:22]}  Qxd5 {[%clk 0:00:24]} 30. Rxd5 {[%clk 0:00:21]}  Rxd5 {[%clk 0:00:25]} 31. Qc4 {[%clk 0:00:19]}  Rd8 {[%clk 0:00:25]} 32. Nxe5 {[%clk 0:00:15]}  Na5 {[%clk 0:00:18]} 33. Qa2 {[%clk 0:00:15]}  Kf8 {[%clk 0:00:12]} 34. Nc6 {[%clk 0:00:10]}  Nxc6 {[%clk 0:00:10]} 35. bxc6 {[%clk 0:00:11]}  Rd2 {[%clk 0:00:08]} 36. Qe6 {[%clk 0:00:11]}  R2d6 {[%clk 0:00:05]} 37. Qe4 {[%clk 0:00:08]}  Re8 {[%clk 0:00:04]} 38. Qa4 {[%clk 0:00:08]}  Rc8 {[%clk 0:00:04]} 39. Bg2 {[%clk 0:00:08]}  Bd4 {[%clk 0:00:03]} 40. Kf1 {[%clk 0:00:07]}  Bxf5 {[%clk 0:00:03]} 41. Ne4 {[%clk 0:00:07]}  Re6 {[%clk 0:00:00]} 42. Qa6 {[%clk 0:00:06]} 1-0


[Site "https://www.chess.com"]

[Event "Titled Tuesday Blitz May 9 Early 2023"]
[White "Mike24147"]
[Black "Shuvalov, Evgenij"]
[BlackFideId "4187237"]
[WhiteElo "2333"]
[BlackElo "2080"]
[Result "0-1"]
[Round "09"]
[TimeControl "180+2"]
[Date "2023.05.09"]
[WhiteClock "0:00:02"]
[BlackClock "0:00:46"]

1. e4 {[%clk 0:02:59]}  e6 {[%clk 0:02:59]} 2. d4 {[%clk 0:02:58]}  d5 {[%clk 0:03:00]} 3. Nc3 {[%clk 0:02:59]}  Bb4 {[%clk 0:02:59]} 4. Ne2 {[%clk 0:02:58]}  Nc6 {[%clk 0:02:58]} 5. exd5 {[%clk 0:02:53]}  exd5 {[%clk 0:02:58]} 6. a3 {[%clk 0:02:52]}  Be7 {[%clk 0:02:56]} 7. Ng3 {[%clk 0:02:50]}  Nf6 {[%clk 0:02:54]} 8. Be2 {[%clk 0:02:49]}  O-O {[%clk 0:02:50]} 9. O-O {[%clk 0:02:48]}  Re8 {[%clk 0:02:45]} 10. Bf4 {[%clk 0:02:44]}  a6 {[%clk 0:02:39]} 11. Bf3 {[%clk 0:02:42]}  h6 {[%clk 0:02:35]} 12. Re1 {[%clk 0:02:36]}  Be6 {[%clk 0:02:35]} 13. Qd2 {[%clk 0:02:29]}  Bf8 {[%clk 0:02:33]} 14. Be5 {[%clk 0:02:22]}  Nd7 {[%clk 0:02:11]} 15. Nxd5 {[%clk 0:02:01]}  Ndxe5 {[%clk 0:02:03]} 16. dxe5 {[%clk 0:02:00]}  Bxd5 {[%clk 0:02:02]} 17. Qxd5 {[%clk 0:01:56]}  Qxd5 {[%clk 0:01:58]} 18. Bxd5 {[%clk 0:01:57]}  Rxe5 {[%clk 0:01:54]} 19. Rxe5 {[%clk 0:01:49]}  Nxe5 {[%clk 0:01:55]} 20. Bxb7 {[%clk 0:01:49]}  Rb8 {[%clk 0:01:54]} 21. Bxa6 {[%clk 0:01:49]}  Rxb2 {[%clk 0:01:54]} 22. Bd3 {[%clk 0:01:36]}  Nxd3 {[%clk 0:01:52]} 23. cxd3 {[%clk 0:01:37]}  Bc5 {[%clk 0:01:51]} 24. Ne4 {[%clk 0:01:22]}  Bxa3 {[%clk 0:01:48]} 25. Kf1 {[%clk 0:01:22]}  Bb4 {[%clk 0:01:40]} 26. Rc1 {[%clk 0:01:16]}  Ba5 {[%clk 0:01:35]} 27. g4 {[%clk 0:01:01]}  Bb6 {[%clk 0:01:34]} 28. Kg2 {[%clk 0:00:55]}  g6 {[%clk 0:01:31]} 29. Kf3 {[%clk 0:00:48]}  Rb5 {[%clk 0:01:25]} 30. Nc3 {[%clk 0:00:42]}  Rb2 {[%clk 0:01:22]} 31. Na4 {[%clk 0:00:40]}  Rxf2+ {[%clk 0:01:20]} 32. Kg3 {[%clk 0:00:39]}  Rd2 {[%clk 0:01:18]} 33. Rc3 {[%clk 0:00:22]}  Bd4 {[%clk 0:01:13]} 34. Rb3 {[%clk 0:00:19]}  Kf8 {[%clk 0:01:02]} 35. h3 {[%clk 0:00:20]}  Ke7 {[%clk 0:01:02]} 36. Kf3 {[%clk 0:00:20]}  f5 {[%clk 0:00:59]} 37. gxf5 {[%clk 0:00:20]}  gxf5 {[%clk 0:01:00]} 38. Kg3 {[%clk 0:00:12]}  Kf6 {[%clk 0:00:59]} 39. Kf3 {[%clk 0:00:12]}  Kg5 {[%clk 0:00:57]} 40. Kg3 {[%clk 0:00:11]}  h5 {[%clk 0:00:57]} 41. h4+ {[%clk 0:00:10]}  Kf6 {[%clk 0:00:57]} 42. Kf4 {[%clk 0:00:09]}  Rh2 {[%clk 0:00:53]} 43. Kg3 {[%clk 0:00:09]}  Be5+ {[%clk 0:00:53]} 44. Kf3 {[%clk 0:00:09]}  Rxh4 {[%clk 0:00:52]} 45. Nb2 {[%clk 0:00:06]}  Rh3+ {[%clk 0:00:47]} 46. Ke2 {[%clk 0:00:02]}  Rh2+ {[%clk 0:00:46]} 0-1


[Site "https://www.chess.com"]

[Event "Titled Tuesday Blitz May 9 Early 2023"]
[White "Yonal, Timur"]
[Black "Bilan, Danila"]
[WhiteFideId "44115725"]
[BlackFideId "24161918"]
[WhiteElo "1966"]
[BlackElo "2182"]
[Result "1-0"]
[Round "09"]
[TimeControl "180+2"]
[Date "2023.05.09"]
[WhiteClock "0:00:14"]
[BlackClock "0:00:04"]

1. e4 {[%clk 0:03:00]}  c6 {[%clk 0:02:59]} 2. d4 {[%clk 0:02:59]}  d5 {[%clk 0:03:00]} 3. exd5 {[%clk 0:02:58]}  cxd5 {[%clk 0:03:01]} 4. Bd3 {[%clk 0:02:59]}  Nc6 {[%clk 0:03:01]} 5. c3 {[%clk 0:02:58]}  Qc7 {[%clk 0:03:01]} 6. Na3 {[%clk 0:02:57]}  a6 {[%clk 0:03:01]} 7. Nc2 {[%clk 0:02:57]}  Nf6 {[%clk 0:02:59]} 8. Nf3 {[%clk 0:02:53]}  Bg4 {[%clk 0:02:57]} 9. O-O {[%clk 0:02:52]}  e6 {[%clk 0:02:57]} 10. h3 {[%clk 0:02:51]}  Bh5 {[%clk 0:02:58]} 11. Re1 {[%clk 0:02:48]}  Bd6 {[%clk 0:02:49]} 12. Bg5 {[%clk 0:02:39]}  Bg6 {[%clk 0:02:39]} 13. Bxf6 {[%clk 0:01:54]}  gxf6 {[%clk 0:02:37]} 14. c4 {[%clk 0:01:54]}  dxc4 {[%clk 0:01:50]} 15. Bxc4 {[%clk 0:01:29]}  Nb4 {[%clk 0:01:42]} 16. Nxb4 {[%clk 0:01:06]}  Qxc4 {[%clk 0:01:33]} 17. a3 {[%clk 0:00:55]}  O-O {[%clk 0:01:26]} 18. Rc1 {[%clk 0:00:52]}  Qb5 {[%clk 0:01:20]} 19. Nh4 {[%clk 0:00:19]}  Bxb4 {[%clk 0:00:41]} 20. axb4 {[%clk 0:00:20]}  Qxb4 {[%clk 0:00:38]} 21. Qg4 {[%clk 0:00:19]}  Kg7 {[%clk 0:00:26]} 22. Rc7 {[%clk 0:00:16]}  Qxe1+ {[%clk 0:00:22]} 23. Kh2 {[%clk 0:00:15]}  f5 {[%clk 0:00:14]} 24. Qg5 {[%clk 0:00:14]}  h6 {[%clk 0:00:13]} 25. Qxg6+ {[%clk 0:00:14]}  Kh8 {[%clk 0:00:13]} 26. Qxh6+ {[%clk 0:00:15]}  Kg8 {[%clk 0:00:12]} 27. Ng6 {[%clk 0:00:15]}  Qe5+ {[%clk 0:00:04]} 28. dxe5 {[%clk 0:00:14]} 1-0


[Site "https://www.chess.com"]